[Event "Early-Titled-Tuesday-Blitz-September-12-2023"]
[Site "Chess.com"]
[Date "2023.09.12"]
[Round "9"]
[White "tylityli"]
[Black "MathiasWomacka"]
[Result "1/2-1/2"]
[WhiteElo "2322"]
[BlackElo "2471"]
[TimeControl "180+1"]
[EndTime "9:46:59 PDT"]
[Termination "Game drawn by repetition"]

1. d4 {[%clk 0:02:18.4]} 1... Nf6 {[%clk 0:02:57.9]} 2. c4 {[%clk 0:02:18.5]}
2... e6 {[%clk 0:02:58]} 3. Nc3 {[%clk 0:02:18.1]} 3... Bb4 {[%clk 0:02:57.4]}
4. e3 {[%clk 0:02:16.6]} 4... c5 {[%clk 0:02:55]} 5. Ne2 {[%clk 0:02:17.5]} 5...
cxd4 {[%clk 0:02:54]} 6. exd4 {[%clk 0:02:16.6]} 6... O-O {[%clk 0:02:54.5]} 7.
a3 {[%clk 0:02:14.8]} 7... Be7 {[%clk 0:02:54.2]} 8. d5 {[%clk 0:02:14.5]} 8...
exd5 {[%clk 0:02:53.6]} 9. cxd5 {[%clk 0:02:15.4]} 9... Bc5 {[%clk 0:02:53.5]}
10. b4 {[%clk 0:02:14.1]} 10... Bd6 {[%clk 0:02:51.9]} 11. g3 {[%clk 0:02:12.4]}
11... a5 {[%clk 0:02:49.3]} 12. b5 {[%clk 0:02:05.4]} 12... Be5 {[%clk
0:02:49.1]} 13. Bg2 {[%clk 0:02:02.8]} 13... d6 {[%clk 0:02:49.2]} 14. O-O
{[%clk 0:02:01.8]} 14... Nbd7 {[%clk 0:02:48.3]} 15. h3 {[%clk 0:01:55.9]} 15...
Nc5 {[%clk 0:02:47.7]} 16. a4 {[%clk 0:01:51.3]} 16... Bf5 {[%clk 0:02:39.5]}
17. Be3 {[%clk 0:01:49.7]} 17... Nfe4 {[%clk 0:02:24.9]} 18. Nxe4 {[%clk
0:01:48]} 18... Bxa1 {[%clk 0:02:17]} 19. Nxc5 {[%clk 0:01:39.7]} 19... Bf6
{[%clk 0:02:03.8]} 20. Ne4 {[%clk 0:01:26.9]} 20... Bxe4 {[%clk 0:01:58.8]} 21.
Bxe4 {[%clk 0:01:26.5]} 21... Re8 {[%clk 0:01:59.4]} 22. Bg2 {[%clk 0:01:26.1]}
22... Rc8 {[%clk 0:01:56.4]} 23. Nd4 {[%clk 0:01:12.3]} 23... Rc4 {[%clk
0:01:55.3]} 24. Nf5 {[%clk 0:01:04.2]} 24... g6 {[%clk 0:01:52.1]} 25. Nh6+
{[%clk 0:01:03.5]} 25... Kg7 {[%clk 0:01:51.7]} 26. Ng4 {[%clk 0:00:55.9]} 26...
Bc3 {[%clk 0:01:50.8]} 27. Qd3 {[%clk 0:00:50.3]} 27... Qc7 {[%clk 0:01:40.9]}
28. Bh6+ {[%clk 0:00:43]} 28... Kg8 {[%clk 0:01:40]} 29. Qxc3 {[%clk 0:00:24.8]}
29... Rxc3 {[%clk 0:01:36.4]} 30. Nf6+ {[%clk 0:00:24.9]} 30... Kh8 {[%clk
0:01:36.6]} 31. Nxe8 {[%clk 0:00:25.8]} 31... Qe7 {[%clk 0:01:28.4]} 32. Bg7+
{[%clk 0:00:24.8]} 32... Kg8 {[%clk 0:01:28.4]} 33. Bxc3 {[%clk 0:00:24.9]}
33... Qxe8 {[%clk 0:01:28.8]} 34. Re1 {[%clk 0:00:24.9]} 34... Qc8 {[%clk
0:01:26.4]} 35. Bf6 {[%clk 0:00:23.9]} 35... Kf8 {[%clk 0:01:18.8]} 36. Be7+
{[%clk 0:00:20]} 36... Kg7 {[%clk 0:01:17.9]} 37. Bxd6 {[%clk 0:00:20.5]} 37...
Qc4 {[%clk 0:01:17.6]} 38. Be5+ {[%clk 0:00:19.7]} 38... f6 {[%clk 0:01:17]} 39.
Bf4 {[%clk 0:00:18.8]} 39... g5 {[%clk 0:01:16.9]} 40. Be3 {[%clk 0:00:17.1]}
40... Qxa4 {[%clk 0:01:15.1]} 41. b6 {[%clk 0:00:16.6]} 41... Qb4 {[%clk
0:01:09.8]} 42. Rc1 {[%clk 0:00:15.5]} 42... a4 {[%clk 0:01:08.4]} 43. Rc7+
{[%clk 0:00:15.6]} 43... Kg6 {[%clk 0:01:08.1]} 44. Rxb7 {[%clk 0:00:14.4]}
44... a3 {[%clk 0:01:04.9]} 45. Ra7 {[%clk 0:00:14.7]} 45... Qb2 {[%clk
0:01:04.1]} 46. b7 {[%clk 0:00:12.9]} 46... a2 {[%clk 0:01:04.4]} 47. Kh2 {[%clk
0:00:13.2]} 47... Qxb7 {[%clk 0:01:01.1]} 48. Rxb7 {[%clk 0:00:12.2]} 48... a1=Q
{[%clk 0:01:00.2]} 49. Be4+ {[%clk 0:00:11.8]} 49... f5 {[%clk 0:00:59.3]} 50.
Rb6+ {[%clk 0:00:10.9]} 50... Kf7 {[%clk 0:00:58.5]} 51. Bxf5 {[%clk 0:00:11]}
51... Qd1 {[%clk 0:00:52]} 52. Be6+ {[%clk 0:00:10.9]} 52... Kg7 {[%clk
0:00:51]} 53. Bxg5 {[%clk 0:00:09.2]} 53... Qe2 {[%clk 0:00:49.5]} 54. Be3
{[%clk 0:00:09.4]} 54... h5 {[%clk 0:00:47.9]} 55. Rb7+ {[%clk 0:00:09.8]} 55...
Kf6 {[%clk 0:00:47.9]} 56. Rh7 {[%clk 0:00:09.3]} 56... Ke5 {[%clk 0:00:43.9]}
57. Kg2 {[%clk 0:00:06.3]} 57... Qd1 {[%clk 0:00:41.7]} 58. Rh6 {[%clk
0:00:06.3]} 58... Qd3 {[%clk 0:00:34.4]} 59. Bf4+ {[%clk 0:00:03]} 59... Ke4
{[%clk 0:00:31]} 60. Rxh5 {[%clk 0:00:02.2]} 60... Qf3+ {[%clk 0:00:30.9]} 61.
Kg1 {[%clk 0:00:02.8]} 61... Qxh5 {[%clk 0:00:31.5]} 62. Kg2 {[%clk 0:00:02.2]}
62... Qf3+ {[%clk 0:00:30]} 63. Kg1 {[%clk 0:00:02.3]} 63... Qd1+ {[%clk
0:00:27]} 64. Kg2 {[%clk 0:00:02.6]} 64... Qf3+ {[%clk 0:00:26.3]} 65. Kg1
{[%clk 0:00:03]} 65... Qe2 {[%clk 0:00:26]} 66. Kg2 {[%clk 0:00:03.1]} 66... Qd1
{[%clk 0:00:25.6]} 67. Bg4 {[%clk 0:00:02.4]} 67... Qd3 {[%clk 0:00:23.2]} 68.
h4 {[%clk 0:00:01.5]} 68... Kxd5 {[%clk 0:00:22.8]} 69. Bf3+ {[%clk 0:00:02]}
69... Ke6 {[%clk 0:00:22.1]} 70. h5 {[%clk 0:00:02.9]} 70... Kf5 {[%clk
0:00:21.3]} 71. Be3 {[%clk 0:00:02.4]} 71... Qb3 {[%clk 0:00:20]} 72. h6 {[%clk
0:00:02.9]} 72... Kg6 {[%clk 0:00:20.1]} 73. Bf4 {[%clk 0:00:03.2]} 73... Qc4
{[%clk 0:00:18.1]} 74. Be3 {[%clk 0:00:03.6]} 74... Qd3 {[%clk 0:00:16.9]} 75.
Bf4 {[%clk 0:00:03.5]} 75... Qc4 {[%clk 0:00:16.6]} 76. Be3 {[%clk 0:00:03.7]}
76... Qd3 {[%clk 0:00:16.8]} 77. Bf4 {[%clk 0:00:04.2]} 77... Qc4 {[%clk
0:00:15.6]} 1/2-1/2

[Event "Early-Titled-Tuesday-Blitz-September-12-2023"]
[Site "Chess.com"]
[Date "2023.09.12"]
[Round "9"]
[White "AttilaTurzo"]
[Black "AliKa2810"]
[Result "0-1"]
[WhiteElo "2466"]
[BlackElo "2574"]
[TimeControl "180+1"]
[EndTime "9:47:00 PDT"]
[Termination "AliKa2810 won on time"]

1. d4 {[%clk 0:03:00.9]} 1... Nf6 {[%clk 0:02:55.9]} 2. Nf3 {[%clk 0:03:00.9]}
2... g6 {[%clk 0:02:55.8]} 3. Bf4 {[%clk 0:03:01.1]} 3... Bg7 {[%clk 0:02:56.1]}
4. e3 {[%clk 0:03:01.9]} 4... d6 {[%clk 0:02:56.5]} 5. Be2 {[%clk 0:03:02.1]}
5... O-O {[%clk 0:02:55.7]} 6. h3 {[%clk 0:03:02.7]} 6... b6 {[%clk 0:02:55.2]}
7. Bh2 {[%clk 0:03:01]} 7... Bb7 {[%clk 0:02:55.5]} 8. O-O {[%clk 0:03:01.5]}
8... c5 {[%clk 0:02:56.1]} 9. c3 {[%clk 0:02:59.5]} 9... Nbd7 {[%clk 0:02:56.6]}
10. Nbd2 {[%clk 0:02:59.9]} 10... a6 {[%clk 0:02:56.9]} 11. a4 {[%clk
0:03:00.3]} 11... Bc6 {[%clk 0:02:52.7]} 12. Qb3 {[%clk 0:02:58.7]} 12... Qb8
{[%clk 0:02:49.7]} 13. Rfc1 {[%clk 0:02:58.7]} 13... Qb7 {[%clk 0:02:50]} 14.
Bf1 {[%clk 0:02:55.5]} 14... Ne4 {[%clk 0:02:45.8]} 15. Nxe4 {[%clk 0:02:54.6]}
15... Bxe4 {[%clk 0:02:46.7]} 16. Nd2 {[%clk 0:02:54.1]} 16... Bd5 {[%clk
0:02:42.7]} 17. c4 {[%clk 0:02:52.3]} 17... cxd4 {[%clk 0:02:23.2]} 18. cxd5
{[%clk 0:02:49.1]} 18... dxe3 {[%clk 0:02:14.6]} 19. fxe3 {[%clk 0:02:50]} 19...
Nc5 {[%clk 0:02:12.9]} 20. Qa2 {[%clk 0:02:43.4]} 20... b5 {[%clk 0:02:11.2]}
21. a5 {[%clk 0:02:23.6]} 21... Qa7 {[%clk 0:02:02.7]} 22. Kh1 {[%clk
0:02:23.1]} 22... Na4 {[%clk 0:01:55.4]} 23. Re1 {[%clk 0:02:04.4]} 23... Bxb2
{[%clk 0:01:51.8]} 24. Rab1 {[%clk 0:02:02.7]} 24... Bg7 {[%clk 0:01:46.4]} 25.
Rbc1 {[%clk 0:01:58.6]} 25... Rac8 {[%clk 0:01:34.7]} 26. Bg1 {[%clk 0:01:58.1]}
26... Nc3 {[%clk 0:01:26.6]} 27. Qb3 {[%clk 0:01:56.2]} 27... Qc7 {[%clk
0:01:20.3]} 28. Nb1 {[%clk 0:01:40.5]} 28... Qxa5 {[%clk 0:01:18.9]} 29. Nxc3
{[%clk 0:01:40.6]} 29... Bxc3 {[%clk 0:01:13.5]} 30. Re2 {[%clk 0:01:39.8]}
30... Be5 {[%clk 0:01:07.9]} 31. Rec2 {[%clk 0:01:37.1]} 31... Rxc2 {[%clk
0:01:07.2]} 32. Rxc2 {[%clk 0:01:37.3]} 32... Qe1 {[%clk 0:01:07.1]} 33. Rf2
{[%clk 0:01:25.1]} 33... f5 {[%clk 0:00:59.7]} 34. Qd3 {[%clk 0:01:19.5]} 34...
f4 {[%clk 0:00:58]} 35. exf4 {[%clk 0:01:18.3]} 35... Rxf4 {[%clk 0:00:53.9]}
36. Rxf4 {[%clk 0:01:13.7]} 36... Bxf4 {[%clk 0:00:54.8]} 37. Bh2 {[%clk
0:01:10.8]} 37... Bxh2 {[%clk 0:00:53]} 38. Kxh2 {[%clk 0:01:11.2]} 38... Qc1
{[%clk 0:00:39.8]} 39. Be2 {[%clk 0:01:06.2]} 39... Qf4+ {[%clk 0:00:38.6]} 40.
Qg3 {[%clk 0:01:00.4]} 40... Qd2 {[%clk 0:00:38.5]} 41. Qf3 {[%clk 0:00:55.5]}
41... Qd4 {[%clk 0:00:34.2]} 42. Qd3 {[%clk 0:00:54.3]} 42... Qf4+ {[%clk
0:00:33.7]} 43. Kg1 {[%clk 0:00:53.5]} 43... Qc1+ {[%clk 0:00:33.5]} 44. Bf1
{[%clk 0:00:50.4]} 44... Qf4 {[%clk 0:00:31.4]} 45. Qc3 {[%clk 0:00:43.5]} 45...
Qf5 {[%clk 0:00:28.5]} 46. Qc6 {[%clk 0:00:40.3]} 46... Qe5 {[%clk 0:00:25.2]}
47. Qxa6 {[%clk 0:00:35.7]} 47... Qxd5 {[%clk 0:00:23.2]} 48. Qxb5 {[%clk
0:00:34.2]} 48... Qd4+ {[%clk 0:00:23.7]} 49. Kh1 {[%clk 0:00:29]} 49... e5
{[%clk 0:00:24.3]} 50. Bc4+ {[%clk 0:00:28.4]} 50... Kg7 {[%clk 0:00:24.2]} 51.
Qd5 {[%clk 0:00:25.4]} 51... Qf4 {[%clk 0:00:17.7]} 52. Qe6 {[%clk 0:00:18.7]}
52... Qc1+ {[%clk 0:00:17]} 53. Kh2 {[%clk 0:00:17.8]} 53... Qf4+ {[%clk
0:00:17.6]} 54. Kg1 {[%clk 0:00:18.4]} 54... Qd4+ {[%clk 0:00:15]} 55. Kf1
{[%clk 0:00:17.2]} 55... h5 {[%clk 0:00:12.7]} 56. Qf7+ {[%clk 0:00:16.8]} 56...
Kh6 {[%clk 0:00:13.1]} 57. Bd5 {[%clk 0:00:16.3]} 57... Qa1+ {[%clk 0:00:12]}
58. Kf2 {[%clk 0:00:15.5]} 58... Qd4+ {[%clk 0:00:12.3]} 59. Kg3 {[%clk
0:00:14.1]} 59... h4+ {[%clk 0:00:11.6]} 60. Kh2 {[%clk 0:00:14.3]} 60... Qe3
{[%clk 0:00:09.7]} 61. Qf3 {[%clk 0:00:14]} 61... Qxf3 {[%clk 0:00:09.3]} 62.
Bxf3 {[%clk 0:00:09.7]} 62... Kg5 {[%clk 0:00:10.2]} 63. Kg1 {[%clk 0:00:09.1]}
63... Kf4 {[%clk 0:00:10.8]} 64. Kf2 {[%clk 0:00:09.7]} 64... e4 {[%clk
0:00:11.2]} 65. Bd1 {[%clk 0:00:08.9]} 65... d5 {[%clk 0:00:11.8]} 66. Bb3
{[%clk 0:00:09.2]} 66... d4 {[%clk 0:00:12.4]} 67. Bc4 {[%clk 0:00:09.1]} 67...
g5 {[%clk 0:00:13]} 68. Bd5 {[%clk 0:00:08.1]} 68... d3 {[%clk 0:00:13.1]} 69.
Bb3 {[%clk 0:00:07.4]} 69... e3+ {[%clk 0:00:13.4]} 70. Kf1 {[%clk 0:00:07.4]}
70... Kg3 {[%clk 0:00:13.2]} 71. Bc4 {[%clk 0:00:06.5]} 71... d2 {[%clk
0:00:13.1]} 72. Be2 {[%clk 0:00:06.2]} 72... Kh2 {[%clk 0:00:13.6]} 73. Bg4
{[%clk 0:00:06.2]} 73... Kg3 {[%clk 0:00:14.3]} 74. Bf3 {[%clk 0:00:06.7]} 74...
Kf4 {[%clk 0:00:08.4]} 75. Bg4 {[%clk 0:00:06.9]} 75... Ke4 {[%clk 0:00:08.1]}
76. Be2 {[%clk 0:00:07.1]} 76... Kd4 {[%clk 0:00:08.5]} 77. Bb5 {[%clk
0:00:01.1]} 77... Kc3 {[%clk 0:00:09.1]} 78. Ke2 {[%clk 0:00:01.3]} 78... Kd4
{[%clk 0:00:08.8]} 0-1

[Event "Early-Titled-Tuesday-Blitz-September-12-2023"]
[Site "Chess.com"]
[Date "2023.09.12"]
[Round "9"]
[White "Gauravthegm"]
[Black "jaskol95"]
[Result "1-0"]
[WhiteElo "2435"]
[BlackElo "2535"]
[TimeControl "180+1"]
[EndTime "9:47:10 PDT"]
[Termination "Gauravthegm won by resignation"]

1. e4 {[%clk 0:03:00.9]} 1... d5 {[%clk 0:03:00.4]} 2. exd5 {[%clk 0:02:55.1]}
2... Nf6 {[%clk 0:03:00.8]} 3. d4 {[%clk 0:02:53.5]} 3... Bg4 {[%clk 0:03:00.6]}
4. Be2 {[%clk 0:02:46]} 4... Bxe2 {[%clk 0:03:00.1]} 5. Nxe2 {[%clk 0:02:43.8]}
5... Qxd5 {[%clk 0:03:00.3]} 6. O-O {[%clk 0:02:42.8]} 6... e6 {[%clk
0:02:56.8]} 7. b3 {[%clk 0:02:35.8]} 7... c6 {[%clk 0:02:51.9]} 8. c4 {[%clk
0:02:34.6]} 8... Qh5 {[%clk 0:02:51.9]} 9. h3 {[%clk 0:02:25.6]} 9... Nbd7
{[%clk 0:02:45]} 10. Bf4 {[%clk 0:02:13.1]} 10... Be7 {[%clk 0:02:37.6]} 11.
Nbc3 {[%clk 0:02:11.6]} 11... O-O {[%clk 0:02:36.5]} 12. Ng3 {[%clk 0:02:08.2]}
12... Qxd1 {[%clk 0:02:36.5]} 13. Raxd1 {[%clk 0:02:07.4]} 13... Bb4 {[%clk
0:02:31.6]} 14. Nce4 {[%clk 0:02:03.4]} 14... Rfd8 {[%clk 0:02:27.4]} 15. Bc7
{[%clk 0:01:50]} 15... Rdc8 {[%clk 0:02:27.6]} 16. Bd6 {[%clk 0:01:47.9]} 16...
Nxe4 {[%clk 0:02:17.6]} 17. Nxe4 {[%clk 0:01:47.3]} 17... Bxd6 {[%clk
0:02:18.1]} 18. Nxd6 {[%clk 0:01:47.6]} 18... Rc7 {[%clk 0:02:18.3]} 19. c5
{[%clk 0:01:43.7]} 19... Nf6 {[%clk 0:02:17.5]} 20. a3 {[%clk 0:01:32.3]} 20...
a5 {[%clk 0:01:53.2]} 21. f4 {[%clk 0:01:20]} 21... Rd7 {[%clk 0:01:48.6]} 22.
f5 {[%clk 0:01:16.4]} 22... exf5 {[%clk 0:01:48.9]} 23. Rxf5 {[%clk 0:01:15.4]}
23... Nd5 {[%clk 0:01:49.6]} 24. Re5 {[%clk 0:01:04.2]} 24... Kf8 {[%clk
0:01:40.4]} 25. Rde1 {[%clk 0:01:04.3]} 25... Nf6 {[%clk 0:01:22.5]} 26. g4
{[%clk 0:00:59.8]} 26... h6 {[%clk 0:01:17.8]} 27. Kg2 {[%clk 0:00:59]} 27... b6
{[%clk 0:01:12.8]} 28. Kg3 {[%clk 0:00:48.2]} 28... bxc5 {[%clk 0:01:13.1]} 29.
dxc5 {[%clk 0:00:48]} 29... Rb8 {[%clk 0:01:10.3]} 30. R5e3 {[%clk 0:00:37.1]}
30... g6 {[%clk 0:01:05.2]} 31. h4 {[%clk 0:00:33.6]} 31... Kg7 {[%clk 0:00:48]}
32. Rf3 {[%clk 0:00:30.2]} 32... Nd5 {[%clk 0:00:40.5]} 33. Ref1 {[%clk
0:00:29.1]} 33... f6 {[%clk 0:00:38.5]} 34. Re1 {[%clk 0:00:25.1]} 34... Re7
{[%clk 0:00:32]} 35. Rxe7+ {[%clk 0:00:21.4]} 35... Nxe7 {[%clk 0:00:32.9]} 36.
Re3 {[%clk 0:00:19.1]} 36... Nd5 {[%clk 0:00:33.6]} 37. Rd3 {[%clk 0:00:18.7]}
37... Rd8 {[%clk 0:00:23]} 38. Kf3 {[%clk 0:00:15.1]} 38... Rd7 {[%clk
0:00:22.4]} 39. h5 {[%clk 0:00:11]} 39... Re7 {[%clk 0:00:19.2]} 40. hxg6 {[%clk
0:00:06.5]} 40... Kxg6 {[%clk 0:00:20.1]} 41. Nf5 {[%clk 0:00:06.1]} 41... Re1
{[%clk 0:00:19.8]} 42. Nd4 {[%clk 0:00:04.9]} 42... Rc1 {[%clk 0:00:12.1]} 43.
Nxc6 {[%clk 0:00:04.7]} 43... Rxc5 {[%clk 0:00:12.8]} 44. Rxd5 {[%clk
0:00:04.1]} 44... Rxc6 {[%clk 0:00:13]} 45. Rxa5 {[%clk 0:00:03.5]} 45... Rc3+
{[%clk 0:00:13.7]} 46. Kf4 {[%clk 0:00:03.9]} 46... Rxb3 {[%clk 0:00:14.4]} 47.
Ra8 {[%clk 0:00:03.6]} 47... Kf7 {[%clk 0:00:11.4]} 48. Ra7+ {[%clk 0:00:02.9]}
48... Ke6 {[%clk 0:00:11]} 49. Ra6+ {[%clk 0:00:03.4]} 49... Kf7 {[%clk
0:00:11.5]} 50. Ra7+ {[%clk 0:00:03.9]} 50... Kg6 {[%clk 0:00:12.2]} 51. Ra6
{[%clk 0:00:04.3]} 51... Rb1 {[%clk 0:00:11.9]} 52. a4 {[%clk 0:00:04.6]} 52...
Rf1+ {[%clk 0:00:12.2]} 53. Kg3 {[%clk 0:00:04.8]} 53... Rb1 {[%clk 0:00:10.6]}
54. Ra8 {[%clk 0:00:05.1]} 54... Rb4 {[%clk 0:00:09.8]} 55. Rg8+ {[%clk
0:00:04.5]} 55... Kf7 {[%clk 0:00:10.1]} 56. Ra8 {[%clk 0:00:05.4]} 56... Rc4
{[%clk 0:00:08.6]} 57. a5 {[%clk 0:00:05.7]} 57... Ra4 {[%clk 0:00:08.7]} 58. a6
{[%clk 0:00:06]} 58... Kg7 {[%clk 0:00:08.5]} 59. Ra7+ {[%clk 0:00:06.1]} 59...
Kg6 {[%clk 0:00:08.7]} 60. Ra8 {[%clk 0:00:06.2]} 60... f5 {[%clk 0:00:08]} 61.
gxf5+ {[%clk 0:00:06.1]} 61... Kxf5 {[%clk 0:00:08.5]} 62. a7 {[%clk 0:00:06.3]}
62... Ra3+ {[%clk 0:00:05.7]} 63. Kf2 {[%clk 0:00:06]} 63... Ra2+ {[%clk
0:00:06.2]} 64. Ke3 {[%clk 0:00:06.4]} 64... Ra3+ {[%clk 0:00:06.9]} 65. Kd2
{[%clk 0:00:06.9]} 65... Ra2+ {[%clk 0:00:07.4]} 66. Kc3 {[%clk 0:00:07.5]}
66... Ra3+ {[%clk 0:00:06.2]} 67. Kb4 {[%clk 0:00:07.8]} 67... Ra1 {[%clk
0:00:06.6]} 68. Rf8+ {[%clk 0:00:07.5]} 68... Kg4 {[%clk 0:00:07.3]} 69. a8=Q
{[%clk 0:00:05.9]} 69... Rxa8 {[%clk 0:00:07.9]} 70. Rxa8 {[%clk 0:00:06.4]}
70... h5 {[%clk 0:00:08.7]} 71. Kc3 {[%clk 0:00:06.1]} 71... h4 {[%clk
0:00:07.9]} 72. Kd2 {[%clk 0:00:06.6]} 72... Kf3 {[%clk 0:00:08.2]} 73. Ke1
{[%clk 0:00:05.7]} 73... Kg2 {[%clk 0:00:08.4]} 74. Rg8+ {[%clk 0:00:05.4]}
74... Kh2 {[%clk 0:00:07.4]} 75. Kf2 {[%clk 0:00:05.6]} 75... Kh3 {[%clk
0:00:06.4]} 76. Rh8 {[%clk 0:00:05.5]} 76... Kg4 {[%clk 0:00:07.1]} 77. Kg2
{[%clk 0:00:05.8]} 77... Kf4 {[%clk 0:00:07.9]} 78. Kh3 {[%clk 0:00:06.3]} 1-0

[Event "Early-Titled-Tuesday-Blitz-September-12-2023"]
[Site "Chess.com"]
[Date "2023.09.12"]
[Round "9"]
[White "Cheer_Down"]
[Black "Journey_to_GrandMaster_YT"]
[Result "1-0"]
[WhiteElo "2441"]
[BlackElo "2600"]
[TimeControl "180+1"]
[EndTime "9:47:13 PDT"]
[Termination "Cheer_Down won by resignation"]

1. e4 {[%clk 0:03:00.9]} 1... d6 {[%clk 0:02:58.8]} 2. d4 {[%clk 0:03:00.4]}
2... Nf6 {[%clk 0:02:57.6]} 3. Nc3 {[%clk 0:03:00.6]} 3... e5 {[%clk 0:02:56.6]}
4. Nf3 {[%clk 0:03:00.2]} 4... Nbd7 {[%clk 0:02:56.4]} 5. Bc4 {[%clk 0:02:59.8]}
5... Be7 {[%clk 0:02:56.8]} 6. O-O {[%clk 0:02:58.6]} 6... O-O {[%clk
0:02:57.3]} 7. h3 {[%clk 0:02:59]} 7... c6 {[%clk 0:02:57.7]} 8. a4 {[%clk
0:02:58.6]} 8... a5 {[%clk 0:02:58.1]} 9. Re1 {[%clk 0:02:55.2]} 9... Nb6 {[%clk
0:02:57.7]} 10. Bb3 {[%clk 0:02:49.8]} 10... Nfd7 {[%clk 0:02:55.9]} 11. Be3
{[%clk 0:02:26.7]} 11... exd4 {[%clk 0:02:54.3]} 12. Bxd4 {[%clk 0:02:26.5]}
12... Nc5 {[%clk 0:02:54.9]} 13. Bxc5 {[%clk 0:02:17.8]} 13... dxc5 {[%clk
0:02:55.8]} 14. Qe2 {[%clk 0:02:18.1]} 14... Qd6 {[%clk 0:02:53.2]} 15. e5
{[%clk 0:02:06.4]} 15... Qg6 {[%clk 0:02:46.2]} 16. e6 {[%clk 0:01:44]} 16... c4
{[%clk 0:02:36.5]} 17. Bxc4 {[%clk 0:01:40]} 17... Nxc4 {[%clk 0:02:35.2]} 18.
exf7+ {[%clk 0:01:39.7]} 18... Rxf7 {[%clk 0:01:31.6]} 19. Qxc4 {[%clk
0:01:38.9]} 19... Bxh3 {[%clk 0:01:30.7]} 20. g3 {[%clk 0:01:39.1]} 20... Bd6
{[%clk 0:01:20.5]} 21. Ne4 {[%clk 0:01:32.5]} 21... Be6 {[%clk 0:01:11]} 22. Qd3
{[%clk 0:01:14.4]} 22... Bd5 {[%clk 0:00:55.7]} 23. Nh4 {[%clk 0:01:00.3]} 23...
Qh6 {[%clk 0:00:47.5]} 24. Nxd6 {[%clk 0:00:59.4]} 24... Qxd6 {[%clk 0:00:46.9]}
25. c4 {[%clk 0:00:57.5]} 25... g5 {[%clk 0:00:16.4]} 26. Nf5 {[%clk 0:00:56.5]}
26... Qf6 {[%clk 0:00:12.2]} 27. cxd5 {[%clk 0:00:36.9]} 27... Qxf5 {[%clk
0:00:12.2]} 28. Qxf5 {[%clk 0:00:36.4]} 28... Rxf5 {[%clk 0:00:13.1]} 29. dxc6
{[%clk 0:00:34.2]} 29... bxc6 {[%clk 0:00:14]} 30. Rac1 {[%clk 0:00:33.8]} 30...
Rb8 {[%clk 0:00:11.9]} 31. Rc2 {[%clk 0:00:33.5]} 31... Rf6 {[%clk 0:00:09]} 32.
Re7 {[%clk 0:00:32.9]} 32... Rb4 {[%clk 0:00:07.1]} 33. Rd2 {[%clk 0:00:29.1]}
33... Rf7 {[%clk 0:00:04.7]} 34. Re5 {[%clk 0:00:27.9]} 34... Rxa4 {[%clk
0:00:03.5]} 35. Rxg5+ {[%clk 0:00:25.3]} 35... Kf8 {[%clk 0:00:03.8]} 36. Rc5
{[%clk 0:00:23.3]} 36... Ra1+ {[%clk 0:00:03.3]} 37. Kg2 {[%clk 0:00:23.1]}
37... Rf6 {[%clk 0:00:04.2]} 38. Rd7 {[%clk 0:00:20.6]} 38... h6 {[%clk
0:00:03.6]} 39. Ra7 {[%clk 0:00:20]} 39... a4 {[%clk 0:00:04.1]} 40. Rc4 {[%clk
0:00:19.3]} 40... Rb1 {[%clk 0:00:04.6]} 41. Rb4 {[%clk 0:00:17.5]} 41... Re6
{[%clk 0:00:04.6]} 42. Rb8+ {[%clk 0:00:16.3]} 42... Re8 {[%clk 0:00:05]} 43.
Rb6 {[%clk 0:00:15.3]} 43... Rc8 {[%clk 0:00:04.1]} 44. Rxa4 {[%clk 0:00:14.4]}
44... c5 {[%clk 0:00:03.3]} 45. Ra7 {[%clk 0:00:13.8]} 45... c4 {[%clk
0:00:02.8]} 46. Rxh6 {[%clk 0:00:12]} 46... Kg8 {[%clk 0:00:02.3]} 47. Rg6+
{[%clk 0:00:09.9]} 47... Kh8 {[%clk 0:00:02.1]} 48. Rh6+ {[%clk 0:00:09.2]}
48... Kg8 {[%clk 0:00:02.4]} 49. Rb6 {[%clk 0:00:08.7]} 49... c3 {[%clk
0:00:02]} 50. Rg6+ {[%clk 0:00:08.5]} 50... Kh8 {[%clk 0:00:02.1]} 51. bxc3
{[%clk 0:00:09.2]} 51... Rxc3 {[%clk 0:00:02.4]} 52. Rf6 {[%clk 0:00:09.3]}
52... Rc8 {[%clk 0:00:02.7]} 53. Rff7 {[%clk 0:00:09.2]} 53... Rb6 {[%clk
0:00:01.7]} 54. g4 {[%clk 0:00:09.1]} 54... Rh6 {[%clk 0:00:02.1]} 55. Kg3
{[%clk 0:00:09.2]} 55... Rg8 {[%clk 0:00:02.7]} 56. f3 {[%clk 0:00:09.4]} 56...
Rc8 {[%clk 0:00:02.7]} 57. Rf5 {[%clk 0:00:09.7]} 57... Rh1 {[%clk 0:00:03]} 58.
Kf4 {[%clk 0:00:09.7]} 58... Rc4+ {[%clk 0:00:03.1]} 59. Kg5 {[%clk 0:00:09.5]}
59... Rc8 {[%clk 0:00:03.8]} 60. Rff7 {[%clk 0:00:09.4]} 60... Rc5+ {[%clk
0:00:03.5]} 61. Rf5 {[%clk 0:00:08.9]} 61... Rc8 {[%clk 0:00:03.3]} 62. Rff7
{[%clk 0:00:08.8]} 62... Rc5+ {[%clk 0:00:03.6]} 63. Kg6 {[%clk 0:00:09]} 63...
Rc6+ {[%clk 0:00:04]} 64. Rf6 {[%clk 0:00:09]} 64... Rh6+ {[%clk 0:00:04.1]} 65.
Kxh6 {[%clk 0:00:08.9]} 65... Rxf6+ {[%clk 0:00:05]} 66. Kh5 {[%clk 0:00:07.3]}
66... Rxf3 {[%clk 0:00:05.9]} 67. Ra8+ {[%clk 0:00:06.7]} 67... Kg7 {[%clk
0:00:05.9]} 68. Ra7+ {[%clk 0:00:05.1]} 68... Kg8 {[%clk 0:00:05.7]} 69. Kg6
{[%clk 0:00:05.6]} 69... Rf8 {[%clk 0:00:04.7]} 70. g5 {[%clk 0:00:06.1]} 70...
Rb8 {[%clk 0:00:04.7]} 71. Kh6 {[%clk 0:00:06.2]} 71... Kh8 {[%clk 0:00:01.7]}
72. Rh7+ {[%clk 0:00:06.3]} 72... Kg8 {[%clk 0:00:02.1]} 73. Rd7 {[%clk
0:00:06.4]} 73... Ra8 {[%clk 0:00:01.9]} 74. Rd6 {[%clk 0:00:06.7]} 74... Rb8
{[%clk 0:00:02.2]} 75. Rc6 {[%clk 0:00:07.1]} 75... Ra8 {[%clk 0:00:02.7]} 76.
Rb6 {[%clk 0:00:07.5]} 76... Rb8 {[%clk 0:00:03.2]} 77. Rxb8+ {[%clk 0:00:07.6]}
77... Kf7 {[%clk 0:00:03.6]} 78. g6+ {[%clk 0:00:07.7]} 78... Kf6 {[%clk
0:00:04]} 79. g7 {[%clk 0:00:07.9]} 1-0